[Event "Late-Titled-Tuesday-Blitz-January-23-2024"]
[Site "Chess.com"]
[Date "2024.01.23"]
[Round "4"]
[White "Crazy_girl99"]
[Black "sergiochess83"]
[Result "1-0"]
[WhiteElo "2618"]
[BlackElo "2878"]
[TimeControl "180+1"]
[EndTime "14:38:24 PST"]
[Termination "Crazy_girl99 won on time"]

1. e4 {[%clk 0:02:56.9]} 1... e6 {[%clk 0:02:59.7]} 2. d4 {[%clk 0:02:56.7]}
2... d5 {[%clk 0:02:59.4]} 3. Nd2 {[%clk 0:02:56.5]} 3... a6 {[%clk 0:02:54.7]}
4. Ngf3 {[%clk 0:02:56.2]} 4... c5 {[%clk 0:02:54.6]} 5. c3 {[%clk 0:02:54.3]}
5... cxd4 {[%clk 0:02:48.3]} 6. Nxd4 {[%clk 0:02:54]} 6... Nf6 {[%clk
0:02:39.2]} 7. e5 {[%clk 0:02:53.4]} 7... Nfd7 {[%clk 0:02:39.1]} 8. f4 {[%clk
0:02:54.1]} 8... Nc6 {[%clk 0:02:31.1]} 9. N2f3 {[%clk 0:02:54.1]} 9... Be7
{[%clk 0:02:25.1]} 10. Bd3 {[%clk 0:02:53.7]} 10... Nc5 {[%clk 0:02:25]} 11. Bc2
{[%clk 0:02:54]} 11... O-O {[%clk 0:02:19.8]} 12. O-O {[%clk 0:02:54.1]} 12...
Bd7 {[%clk 0:02:16.6]} 13. Be3 {[%clk 0:02:54.2]} 13... Rc8 {[%clk 0:02:15.7]}
14. Qe1 {[%clk 0:02:52.6]} 14... Ne4 {[%clk 0:02:07.7]} 15. Rd1 {[%clk
0:02:50.8]} 15... Qc7 {[%clk 0:01:56.1]} 16. Bxe4 {[%clk 0:02:34.1]} 16... dxe4
{[%clk 0:01:55.6]} 17. Nd2 {[%clk 0:02:34.7]} 17... Nxd4 {[%clk 0:01:20.1]} 18.
Bxd4 {[%clk 0:02:34.4]} 18... Bb5 {[%clk 0:01:08.3]} 19. Rf2 {[%clk 0:02:31.3]}
19... Bh4 {[%clk 0:01:07.9]} 20. g3 {[%clk 0:02:30.1]} 20... Be7 {[%clk
0:01:07.8]} 21. Nxe4 {[%clk 0:02:30.2]} 21... Bc6 {[%clk 0:01:07.9]} 22. Qe3
{[%clk 0:02:27]} 22... b5 {[%clk 0:01:06.7]} 23. a3 {[%clk 0:02:24.1]} 23... Ba8
{[%clk 0:01:05.8]} 24. Nd2 {[%clk 0:02:00.9]} 24... a5 {[%clk 0:01:04.1]} 25.
Nf3 {[%clk 0:01:57.8]} 25... b4 {[%clk 0:01:04.5]} 26. axb4 {[%clk 0:01:56.8]}
26... axb4 {[%clk 0:01:04.4]} 27. h4 {[%clk 0:01:53.6]} 27... h5 {[%clk
0:01:03.6]} 28. Ng5 {[%clk 0:01:52]} 28... bxc3 {[%clk 0:00:55.6]} 29. bxc3
{[%clk 0:01:51.7]} 29... g6 {[%clk 0:00:52.7]} 30. Kh2 {[%clk 0:01:40.9]} 30...
Rb8 {[%clk 0:00:48.3]} 31. f5 {[%clk 0:01:36.2]} 31... exf5 {[%clk 0:00:45.4]}
32. e6 {[%clk 0:01:35.3]} 32... f6 {[%clk 0:00:43.9]} 33. Nf7 {[%clk 0:01:34.7]}
33... Rxf7 {[%clk 0:00:12.2]} 34. exf7+ {[%clk 0:01:35.6]} 34... Kxf7 {[%clk
0:00:13]} 35. Re2 {[%clk 0:01:33.4]} 35... Be4 {[%clk 0:00:08.9]} 36. Ra2 {[%clk
0:01:25]} 36... Rb7 {[%clk 0:00:08.1]} 37. Qh6 {[%clk 0:01:20.4]} 37... Bf8
{[%clk 0:00:08.4]} 38. Qf4 {[%clk 0:01:13.1]} 38... Qxf4 {[%clk 0:00:07.7]} 39.
gxf4 {[%clk 0:01:14]} 39... Bd6 {[%clk 0:00:08.1]} 40. Be3 {[%clk 0:01:13.9]}
40... Ke7 {[%clk 0:00:06.4]} 41. Rad2 {[%clk 0:01:12.6]} 41... Bb8 {[%clk
0:00:05.1]} 42. Kg1 {[%clk 0:01:07.7]} 42... Bc6 {[%clk 0:00:04.7]} 43. Kf2
{[%clk 0:01:05.7]} 43... Rb3 {[%clk 0:00:04.3]} 44. c4 {[%clk 0:01:03.7]} 44...
Bc7 {[%clk 0:00:02.9]} 45. Rd3 {[%clk 0:00:59.2]} 45... Rb2+ {[%clk 0:00:02.5]}
46. R1d2 {[%clk 0:00:59.7]} 46... Rb8 {[%clk 0:00:02.6]} 47. Bc5+ {[%clk
0:00:59]} 47... Ke8 {[%clk 0:00:03]} 48. Re2+ {[%clk 0:00:57.7]} 48... Be4
{[%clk 0:00:02.6]} 49. Bd6 {[%clk 0:00:54.8]} 49... Bxd6 {[%clk 0:00:02.7]} 50.
Rxd6 {[%clk 0:00:55.7]} 50... Kf7 {[%clk 0:00:03.2]} 51. Red2 {[%clk 0:00:49.8]}
51... Rb3 {[%clk 0:00:03]} 52. Rd7+ {[%clk 0:00:48.9]} 52... Ke8 {[%clk
0:00:02.8]} 53. Rg7 {[%clk 0:00:45.4]} 53... Rf3+ {[%clk 0:00:02.7]} 54. Ke2
{[%clk 0:00:45.8]} 54... Rxf4 {[%clk 0:00:03.2]} 55. Rb2 {[%clk 0:00:42.9]}
55... Kf8 {[%clk 0:00:02.8]} 56. Ra7 {[%clk 0:00:42.1]} 56... Bc6 {[%clk
0:00:03.1]} 57. Rb8+ {[%clk 0:00:40.2]} 57... Be8 {[%clk 0:00:03.2]} 58. c5
{[%clk 0:00:40.6]} 58... Re4+ {[%clk 0:00:02.4]} 59. Kf2 {[%clk 0:00:39.6]}
59... Re5 {[%clk 0:00:03.3]} 60. c6 {[%clk 0:00:40]} 60... f4 {[%clk 0:00:01.4]}
61. c7 {[%clk 0:00:39.9]} 1-0

[Event "Late-Titled-Tuesday-Blitz-January-23-2024"]
[Site "Chess.com"]
[Date "2024.01.23"]
[Round "4"]
[White "Viktor_Poddubnyi"]
[Black "Herman-NY"]
[Result "0-1"]
[WhiteElo "2258"]
[BlackElo "2476"]
[TimeControl "180+1"]
[EndTime "14:38:26 PST"]
[Termination "Herman-NY won on time"]

1. e4 {[%clk 0:02:59.4]} 1... c5 {[%clk 0:02:58.9]} 2. Nf3 {[%clk 0:02:59.1]}
2... e6 {[%clk 0:02:59.1]} 3. g3 {[%clk 0:02:58.7]} 3... a6 {[%clk 0:02:53.7]}
4. Bg2 {[%clk 0:02:58.2]} 4... b5 {[%clk 0:02:54.2]} 5. O-O {[%clk 0:02:57.7]}
5... Bb7 {[%clk 0:02:54.7]} 6. Re1 {[%clk 0:02:57.4]} 6... Nc6 {[%clk
0:02:51.6]} 7. c3 {[%clk 0:02:56]} 7... Nf6 {[%clk 0:02:30.7]} 8. e5 {[%clk
0:02:46.3]} 8... Nd5 {[%clk 0:02:30.5]} 9. d4 {[%clk 0:02:46.2]} 9... cxd4
{[%clk 0:02:18.1]} 10. cxd4 {[%clk 0:02:47.1]} 10... Be7 {[%clk 0:02:06.5]} 11.
Nc3 {[%clk 0:02:47.1]} 11... Nxc3 {[%clk 0:01:58.6]} 12. bxc3 {[%clk 0:02:48]}
12... O-O {[%clk 0:01:57.3]} 13. a4 {[%clk 0:01:52.5]} 13... Rc8 {[%clk
0:01:39.4]} 14. Qe2 {[%clk 0:01:49]} 14... b4 {[%clk 0:01:10.8]} 15. c4 {[%clk
0:01:47.8]} 15... d5 {[%clk 0:01:10.2]} 16. c5 {[%clk 0:01:39.9]} 16... a5
{[%clk 0:01:06.3]} 17. Bf1 {[%clk 0:01:14.4]} 17... Ra8 {[%clk 0:00:49.2]} 18.
Qc2 {[%clk 0:00:56.4]} 18... Ba6 {[%clk 0:00:47.7]} 19. Bh3 {[%clk 0:00:54.8]}
19... Rb8 {[%clk 0:00:36.5]} 20. Rb1 {[%clk 0:00:47.4]} 20... Bc4 {[%clk
0:00:28.8]} 21. Be3 {[%clk 0:00:47.2]} 21... Rb7 {[%clk 0:00:17.7]} 22. Nd2
{[%clk 0:00:39.9]} 22... Ba6 {[%clk 0:00:17.8]} 23. Bf1 {[%clk 0:00:35.1]} 23...
Bxf1 {[%clk 0:00:17.3]} 24. Rxf1 {[%clk 0:00:32.6]} 24... f5 {[%clk 0:00:11.5]}
25. Nb3 {[%clk 0:00:28.4]} 25... g5 {[%clk 0:00:07.8]} 26. f4 {[%clk 0:00:28]}
26... g4 {[%clk 0:00:07.8]} 27. Kf2 {[%clk 0:00:27.7]} 27... h5 {[%clk
0:00:07.8]} 28. h4 {[%clk 0:00:20.5]} 28... Bxh4 {[%clk 0:00:05.4]} 29. gxh4
{[%clk 0:00:19.5]} 29... Qxh4+ {[%clk 0:00:06.3]} 30. Ke2 {[%clk 0:00:19.3]}
30... Qe7 {[%clk 0:00:05.4]} 31. Rh1 {[%clk 0:00:14]} 31... h4 {[%clk
0:00:05.9]} 32. Rbg1 {[%clk 0:00:14]} 32... Rf7 {[%clk 0:00:06.1]} 33. Kd3
{[%clk 0:00:13.6]} 33... Rh7 {[%clk 0:00:05.6]} 34. Qf2 {[%clk 0:00:10.9]} 34...
Kf8 {[%clk 0:00:03.2]} 35. Rxg4 {[%clk 0:00:04.3]} 35... fxg4 {[%clk 0:00:03.2]}
36. f5 {[%clk 0:00:04.8]} 36... exf5 {[%clk 0:00:02.9]} 37. Qxf5+ {[%clk
0:00:04.5]} 37... Kg8 {[%clk 0:00:02.7]} 38. Qxg4+ {[%clk 0:00:03.3]} 38... Rg7
{[%clk 0:00:01.4]} 39. Qxh4 {[%clk 0:00:01.6]} 39... Qxh4 {[%clk 0:00:01.2]} 40.
Rxh4 {[%clk 0:00:02.5]} 40... Nd8 {[%clk 0:00:01.9]} 0-1

[Event "Late-Titled-Tuesday-Blitz-January-23-2024"]
[Site "Chess.com"]
[Date "2024.01.23"]
[Round "4"]
[White "FM_Kappeler"]
[Black "XeresLt"]
[Result "1-0"]
[WhiteElo "2279"]
[BlackElo "2465"]
[TimeControl "180+1"]
[EndTime "14:38:28 PST"]
[Termination "FM_Kappeler won by resignation"]

1. c4 {[%clk 0:03:00.9]} 1... Nf6 {[%clk 0:01:54.7]} 2. Nf3 {[%clk 0:02:59.8]}
2... g6 {[%clk 0:01:55.1]} 3. Nc3 {[%clk 0:02:59.5]} 3... d6 {[%clk 0:01:55.6]}
4. e4 {[%clk 0:02:59.1]} 4... Bg7 {[%clk 0:01:56.5]} 5. d4 {[%clk 0:02:59.2]}
5... O-O {[%clk 0:01:57]} 6. Be2 {[%clk 0:02:59.5]} 6... c5 {[%clk 0:01:57.5]}
7. O-O {[%clk 0:02:54]} 7... Nc6 {[%clk 0:01:56.8]} 8. d5 {[%clk 0:02:48.5]}
8... Na5 {[%clk 0:01:56.4]} 9. a3 {[%clk 0:02:31.8]} 9... Qb6 {[%clk 0:01:27.8]}
10. b4 {[%clk 0:02:16.1]} 10... cxb4 {[%clk 0:01:27.9]} 11. Be3 {[%clk
0:02:16.2]} 11... Qc7 {[%clk 0:01:27.8]} 12. Nb5 {[%clk 0:02:13.2]} 12... Qd7
{[%clk 0:01:27.7]} 13. axb4 {[%clk 0:02:10.9]} 13... Nxe4 {[%clk 0:01:17.3]} 14.
Rxa5 {[%clk 0:02:06]} 14... b6 {[%clk 0:01:14.2]} 15. Bxb6 {[%clk 0:01:46.5]}
15... axb6 {[%clk 0:01:09.3]} 16. Rxa8 {[%clk 0:01:46.1]} 16... Qg4 {[%clk
0:01:00.7]} 17. Nfd4 {[%clk 0:01:35.5]} 17... Qh4 {[%clk 0:00:59.9]} 18. Nc6
{[%clk 0:01:33.3]} 18... Bd7 {[%clk 0:00:45.8]} 19. Rxf8+ {[%clk 0:01:28.5]}
19... Kxf8 {[%clk 0:00:44.6]} 20. Qa4 {[%clk 0:01:17.2]} 20... Bf6 {[%clk
0:00:37.6]} 21. Qa7 {[%clk 0:00:50.6]} 21... Bf5 {[%clk 0:00:37.5]} 22. Nbd4
{[%clk 0:00:44.6]} 22... Nd2 {[%clk 0:00:20.9]} 23. Nxf5 {[%clk 0:00:41.7]}
23... gxf5 {[%clk 0:00:21.8]} 24. Rd1 {[%clk 0:00:38.8]} 24... Ne4 {[%clk
0:00:22]} 25. Qxb6 {[%clk 0:00:37.8]} 25... Kg7 {[%clk 0:00:19]} 26. Qe3 {[%clk
0:00:35.1]} 26... Nc3 {[%clk 0:00:18.8]} 27. Rc1 {[%clk 0:00:29.6]} 27... Ne4
{[%clk 0:00:17.3]} 28. b5 {[%clk 0:00:29]} 28... Bg5 {[%clk 0:00:17.6]} 29. Qa3
{[%clk 0:00:23.7]} 29... Qxf2+ {[%clk 0:00:14.9]} 30. Kh1 {[%clk 0:00:23.6]}
30... Qxe2 {[%clk 0:00:13.2]} 31. Qa1+ {[%clk 0:00:19.4]} 31... Bf6 {[%clk
0:00:12.9]} 32. Nd4 {[%clk 0:00:14.9]} 32... Qe3 {[%clk 0:00:12.4]} 33. Nxf5+
{[%clk 0:00:10.8]} 33... Kg6 {[%clk 0:00:12.9]} 34. Nxe3 {[%clk 0:00:10.9]}
34... Bxa1 {[%clk 0:00:13.8]} 35. Rxa1 {[%clk 0:00:10.7]} 35... Nf2+ {[%clk
0:00:14.4]} 36. Kg1 {[%clk 0:00:09.8]} 36... Nd3 {[%clk 0:00:15.3]} 37. b6
{[%clk 0:00:09.8]} 37... Nc5 {[%clk 0:00:16.2]} 38. Rb1 {[%clk 0:00:09.1]} 38...
Nb7 {[%clk 0:00:16]} 39. Nc2 {[%clk 0:00:08.6]} 39... Kf5 {[%clk 0:00:16.6]} 40.
Nd4+ {[%clk 0:00:08.8]} 40... Ke5 {[%clk 0:00:17.5]} 41. Nc6+ {[%clk 0:00:08.9]}
41... Kf6 {[%clk 0:00:16]} 42. Kf2 {[%clk 0:00:08.1]} 42... e6 {[%clk
0:00:16.2]} 43. Ke3 {[%clk 0:00:08.1]} 43... exd5 {[%clk 0:00:16.1]} 44. cxd5
{[%clk 0:00:08.5]} 44... Kf5 {[%clk 0:00:15.1]} 45. Kd4 {[%clk 0:00:08.8]} 45...
Kf4 {[%clk 0:00:15.6]} 46. Rf1+ {[%clk 0:00:08.4]} 46... Kg5 {[%clk 0:00:15.9]}
47. Rxf7 {[%clk 0:00:08]} 47... Nc5 {[%clk 0:00:16.8]} 48. b7 {[%clk 0:00:07.5]}
48... Nb3+ {[%clk 0:00:17.4]} 49. Kc3 {[%clk 0:00:07]} 49... Na5 {[%clk
0:00:17.7]} 50. b8=Q {[%clk 0:00:06.6]} 1-0

[Event "Late-Titled-Tuesday-Blitz-January-23-2024"]
[Site "Chess.com"]
[Date "2024.01.23"]
[Round "4"]
[White "miraitrunks"]
[Black "wild3000"]
[Result "1/2-1/2"]
[WhiteElo "2094"]
[BlackElo "2450"]
[TimeControl "180+1"]
[EndTime "14:38:28 PST"]
[Termination "Game drawn by repetition"]

1. e4 {[%clk 0:03:00.9]} 1... e6 {[%clk 0:03:00]} 2. Nc3 {[%clk 0:02:58]} 2...
a6 {[%clk 0:03:00.9]} 3. Nf3 {[%clk 0:02:58]} 3... b5 {[%clk 0:03:01.2]} 4. a3
{[%clk 0:02:58.3]} 4... Bb7 {[%clk 0:03:01.2]} 5. d4 {[%clk 0:02:58.7]} 5... d6
{[%clk 0:03:01.2]} 6. Bd3 {[%clk 0:02:58.7]} 6... Nf6 {[%clk 0:03:01.1]} 7. O-O
{[%clk 0:02:58.3]} 7... Be7 {[%clk 0:03:01.4]} 8. Qe2 {[%clk 0:02:58.6]} 8...
Nbd7 {[%clk 0:03:01.4]} 9. Bg5 {[%clk 0:02:58.7]} 9... c5 {[%clk 0:03:01.2]} 10.
e5 {[%clk 0:02:56.3]} 10... Nd5 {[%clk 0:03:01]} 11. Bxe7 {[%clk 0:02:53.2]}
11... Qxe7 {[%clk 0:03:01.9]} 12. Nxd5 {[%clk 0:02:52.9]} 12... Bxd5 {[%clk
0:03:01.7]} 13. exd6 {[%clk 0:02:53.3]} 13... Qxd6 {[%clk 0:03:01.7]} 14. dxc5
{[%clk 0:02:52]} 14... Nxc5 {[%clk 0:03:01.7]} 15. Rad1 {[%clk 0:02:52]} 15...
Nxd3 {[%clk 0:03:00]} 16. Rxd3 {[%clk 0:02:52.9]} 16... O-O {[%clk 0:02:58.8]}
17. Rfd1 {[%clk 0:02:47.8]} 17... Qc7 {[%clk 0:02:51.4]} 18. Rc3 {[%clk
0:02:44.2]} 18... Qb7 {[%clk 0:02:50.5]} 19. Rd4 {[%clk 0:02:43]} 19... Rac8
{[%clk 0:02:47.9]} 20. Rxc8 {[%clk 0:02:39.8]} 20... Rxc8 {[%clk 0:02:48.8]} 21.
Rf4 {[%clk 0:02:34.6]} 21... Bxf3 {[%clk 0:02:41.1]} 22. Rxf3 {[%clk 0:02:29.2]}
22... g6 {[%clk 0:02:40.8]} 23. h4 {[%clk 0:02:22.3]} 23... h5 {[%clk
0:02:38.8]} 24. Rg3 {[%clk 0:02:19]} 24... Qd5 {[%clk 0:02:34.7]} 25. c3 {[%clk
0:02:03.9]} 25... Rc4 {[%clk 0:02:31.1]} 26. Rd3 {[%clk 0:01:55.9]} 26... Re4
{[%clk 0:02:28.2]} 27. Re3 {[%clk 0:01:28.1]} 27... Rxh4 {[%clk 0:02:24.2]} 28.
Rd3 {[%clk 0:01:27]} 28... Re4 {[%clk 0:02:21.9]} 29. Qd2 {[%clk 0:01:17.3]}
29... Qe5 {[%clk 0:02:20.5]} 30. g3 {[%clk 0:01:12.9]} 30... Re1+ {[%clk
0:02:17.8]} 31. Kg2 {[%clk 0:01:13]} 31... Qe4+ {[%clk 0:02:17.1]} 32. Rf3
{[%clk 0:01:13]} 32... Rg1+ {[%clk 0:01:38.1]} 33. Kxg1 {[%clk 0:01:11]} 33...
Qxf3 {[%clk 0:01:38.6]} 34. Qd8+ {[%clk 0:00:54.6]} 34... Kg7 {[%clk 0:01:37.3]}
35. Qb6 {[%clk 0:00:55.5]} 35... Qd1+ {[%clk 0:01:34.6]} 36. Kg2 {[%clk
0:00:55.3]} 36... Qd5+ {[%clk 0:01:34.4]} 37. Kg1 {[%clk 0:00:55.1]} 37... g5
{[%clk 0:01:21.3]} 38. Qxa6 {[%clk 0:00:54]} 38... h4 {[%clk 0:01:21.4]} 39.
gxh4 {[%clk 0:00:42.1]} 39... gxh4 {[%clk 0:01:22.3]} 40. Qb6 {[%clk 0:00:42]}
40... Qg5+ {[%clk 0:00:59.9]} 41. Kh2 {[%clk 0:00:29.8]} 41... Qf4+ {[%clk
0:00:58.9]} 42. Kg2 {[%clk 0:00:30.2]} 42... Qg4+ {[%clk 0:00:50.4]} 43. Kh2
{[%clk 0:00:29.4]} 43... e5 {[%clk 0:00:44]} 44. Qxb5 {[%clk 0:00:29.1]} 44...
Qf4+ {[%clk 0:00:32.5]} 45. Kg2 {[%clk 0:00:27.9]} 45... Qe4+ {[%clk 0:00:32.2]}
46. Kh2 {[%clk 0:00:27.1]} 46... Qf4+ {[%clk 0:00:32.1]} 47. Kg2 {[%clk
0:00:27.3]} 47... f6 {[%clk 0:00:31.1]} 48. Qd7+ {[%clk 0:00:25.5]} 48... Kg6
{[%clk 0:00:26.7]} 49. Qe8+ {[%clk 0:00:25.9]} 49... Kf5 {[%clk 0:00:25.2]} 50.
Qd7+ {[%clk 0:00:25.9]} 50... Kg6 {[%clk 0:00:21.6]} 51. Qe8+ {[%clk 0:00:25.9]}
51... Kg7 {[%clk 0:00:20.6]} 52. Qe7+ {[%clk 0:00:26]} 52... Kh6 {[%clk
0:00:20.1]} 53. Qf8+ {[%clk 0:00:26.2]} 53... Kg6 {[%clk 0:00:19]} 54. Qg8+
{[%clk 0:00:24.2]} 54... Kh6 {[%clk 0:00:19.3]} 55. Qh8+ {[%clk 0:00:24.2]}
55... Kg6 {[%clk 0:00:19.3]} 56. Qg8+ {[%clk 0:00:24.4]} 56... Kh6 {[%clk
0:00:19.5]} 57. Qh8+ {[%clk 0:00:24.7]} 57... Kg6 {[%clk 0:00:19.7]} 58. Qg8+
{[%clk 0:00:25.1]} 1/2-1/2

[Event "Late-Titled-Tuesday-Blitz-January-23-2024"]
[Site "Chess.com"]
[Date "2024.01.23"]
[Round "4"]
[White "ozates"]
[Black "baag"]
[Result "1-0"]
[WhiteElo "2608"]
[BlackElo "2838"]
[TimeControl "180+1"]
[EndTime "14:38:30 PST"]
[Termination "ozates won on time"]

1. e4 {[%clk 0:03:00.9]} 1... c6 {[%clk 0:03:00.3]} 2. Nf3 {[%clk 0:03:01]} 2...
d5 {[%clk 0:03:01]} 3. d3 {[%clk 0:03:01.9]} 3... g6 {[%clk 0:02:58.8]} 4. Nbd2
{[%clk 0:03:00.8]} 4... Bg7 {[%clk 0:02:59.1]} 5. g3 {[%clk 0:03:00.6]} 5... Nf6
{[%clk 0:02:59.4]} 6. Bg2 {[%clk 0:03:00.9]} 6... O-O {[%clk 0:03:00.2]} 7. O-O
{[%clk 0:03:01.5]} 7... a5 {[%clk 0:03:00.9]} 8. Re1 {[%clk 0:03:01.8]} 8... a4
{[%clk 0:03:00.9]} 9. a3 {[%clk 0:03:02]} 9... dxe4 {[%clk 0:02:52.4]} 10. dxe4
{[%clk 0:02:59.7]} 10... Na6 {[%clk 0:02:52.6]} 11. h3 {[%clk 0:02:57.1]} 11...
Nc5 {[%clk 0:02:51.7]} 12. Qe2 {[%clk 0:02:56.6]} 12... b6 {[%clk 0:02:49.6]}
13. Rd1 {[%clk 0:02:56]} 13... Ba6 {[%clk 0:02:48.8]} 14. Qe1 {[%clk 0:02:56]}
14... Qc7 {[%clk 0:02:48.6]} 15. e5 {[%clk 0:02:47.1]} 15... Nfd7 {[%clk
0:02:48.7]} 16. Ne4 {[%clk 0:02:35.4]} 16... Nxe5 {[%clk 0:02:27]} 17. Nxc5
{[%clk 0:02:29.7]} 17... Nxf3+ {[%clk 0:02:22.6]} 18. Bxf3 {[%clk 0:02:28.8]}
18... bxc5 {[%clk 0:02:23.5]} 19. Bf4 {[%clk 0:02:26.8]} 19... e5 {[%clk
0:02:23.7]} 20. Be3 {[%clk 0:02:25.9]} 20... Rfb8 {[%clk 0:02:14.6]} 21. Bxc5
{[%clk 0:02:02]} 21... Rxb2 {[%clk 0:02:14.1]} 22. Rd6 {[%clk 0:01:50.6]} 22...
Bb5 {[%clk 0:01:56]} 23. Rad1 {[%clk 0:01:48.3]} 23... Rxc2 {[%clk 0:01:48.3]}
24. Rd7 {[%clk 0:01:48.3]} 24... Qxd7 {[%clk 0:01:31.6]} 25. Rxd7 {[%clk
0:01:49.2]} 25... Rxc5 {[%clk 0:01:32.1]} 26. Qe3 {[%clk 0:01:41.4]} 26... Rc2
{[%clk 0:01:28.3]} 27. Be4 {[%clk 0:01:39.6]} 27... Re2 {[%clk 0:01:02]} 28. Qf3
{[%clk 0:01:39.4]} 28... Rf8 {[%clk 0:01:02.8]} 29. Rd1 {[%clk 0:01:05.8]} 29...
Ra2 {[%clk 0:00:57.6]} 30. Qc3 {[%clk 0:00:59.4]} 30... h5 {[%clk 0:00:48.2]}
31. h4 {[%clk 0:00:55.9]} 31... Re8 {[%clk 0:00:42.6]} 32. Rd7 {[%clk 0:00:53]}
32... Bf8 {[%clk 0:00:36.3]} 33. Qf3 {[%clk 0:00:29.8]} 33... Be7 {[%clk
0:00:20.9]} 34. Bxc6 {[%clk 0:00:12.9]} 34... Rxa3 {[%clk 0:00:20.6]} 35. Qd5
{[%clk 0:00:10.4]} 35... Ra1+ {[%clk 0:00:13.8]} 36. Kg2 {[%clk 0:00:09.7]}
36... Bxc6 {[%clk 0:00:12.8]} 37. Qxc6 {[%clk 0:00:09.7]} 37... a3 {[%clk
0:00:12.6]} 38. Ra7 {[%clk 0:00:10]} 38... Kf8 {[%clk 0:00:13.4]} 39. Qd5 {[%clk
0:00:06.2]} 39... Re1 {[%clk 0:00:10.9]} 40. Qc4 {[%clk 0:00:03.8]} 40... Kg7
{[%clk 0:00:09.3]} 41. Qd5 {[%clk 0:00:04]} 41... Kf8 {[%clk 0:00:06.7]} 42. Qc4
{[%clk 0:00:04.3]} 42... Rd1 {[%clk 0:00:04.9]} 43. Qa4 {[%clk 0:00:03.3]} 43...
Rd4 {[%clk 0:00:04.8]} 44. Qb3 {[%clk 0:00:03.1]} 44... Kg7 {[%clk 0:00:04.2]}
45. Qf3 {[%clk 0:00:03.7]} 45... Bf6 {[%clk 0:00:03.9]} 46. Qc6 {[%clk
0:00:03.6]} 46... Be7 {[%clk 0:00:02.8]} 47. Qxe8 {[%clk 0:00:03.5]} 1-0

[Event "Late-Titled-Tuesday-Blitz-January-23-2024"]
[Site "Chess.com"]
[Date "2024.01.23"]
[Round "4"]
[White "dropstoneDP"]
[Black "jk13"]
[Result "1-0"]
[WhiteElo "3041"]
[BlackElo "2651"]
[TimeControl "180+1"]
[EndTime "14:38:33 PST"]
[Termination "dropstoneDP won by resignation"]

1. e4 {[%clk 0:03:00.9]} 1... e5 {[%clk 0:02:58.2]} 2. Nf3 {[%clk 0:03:00.3]}
2... Nc6 {[%clk 0:02:58.5]} 3. Bb5 {[%clk 0:03:00.9]} 3... a6 {[%clk 0:02:58.5]}
4. Ba4 {[%clk 0:03:00.2]} 4... Nf6 {[%clk 0:02:59.1]} 5. O-O {[%clk 0:02:58.3]}
5... b5 {[%clk 0:02:59.3]} 6. Bb3 {[%clk 0:02:57.7]} 6... Bc5 {[%clk 0:03:00]}
7. a4 {[%clk 0:02:56.1]} 7... Rb8 {[%clk 0:03:00]} 8. c3 {[%clk 0:02:56.3]} 8...
d6 {[%clk 0:03:00]} 9. d4 {[%clk 0:02:56.9]} 9... Bb6 {[%clk 0:03:00.7]} 10. a5
{[%clk 0:02:56.5]} 10... Ba7 {[%clk 0:03:00.6]} 11. h3 {[%clk 0:02:56.7]} 11...
h6 {[%clk 0:03:00.4]} 12. Be3 {[%clk 0:02:56.6]} 12... Ra8 {[%clk 0:03:00.1]}
13. dxe5 {[%clk 0:02:54.4]} 13... dxe5 {[%clk 0:02:44.8]} 14. Qxd8+ {[%clk
0:02:53.1]} 14... Nxd8 {[%clk 0:02:45.7]} 15. Bxa7 {[%clk 0:02:52.1]} 15... Rxa7
{[%clk 0:02:46]} 16. Nxe5 {[%clk 0:02:52.7]} 16... c5 {[%clk 0:02:14.4]} 17. f3
{[%clk 0:02:50.9]} 17... c4 {[%clk 0:02:09.5]} 18. Bc2 {[%clk 0:02:50.9]} 18...
Re7 {[%clk 0:02:07.8]} 19. Ng4 {[%clk 0:02:51.1]} 19... Nxg4 {[%clk 0:02:00.3]}
20. hxg4 {[%clk 0:02:52]} 20... g5 {[%clk 0:01:49.9]} 21. Na3 {[%clk 0:02:51.1]}
21... Nc6 {[%clk 0:01:48.3]} 22. Rfd1 {[%clk 0:02:48.3]} 22... Be6 {[%clk
0:01:47.1]} 23. Kf2 {[%clk 0:02:33]} 23... Rd7 {[%clk 0:01:42]} 24. Ke3 {[%clk
0:02:30.7]} 24... Rxd1 {[%clk 0:01:37.3]} 25. Bxd1 {[%clk 0:02:31.6]} 25... Ke7
{[%clk 0:01:29.9]} 26. Nc2 {[%clk 0:02:30.6]} 26... h5 {[%clk 0:01:10.9]} 27.
gxh5 {[%clk 0:02:31.1]} 27... Rxh5 {[%clk 0:01:11.6]} 28. Be2 {[%clk 0:02:31.7]}
28... Rh2 {[%clk 0:01:10]} 29. Kf2 {[%clk 0:02:29.8]} 29... Kd6 {[%clk
0:01:06.7]} 30. Nb4 {[%clk 0:02:26.9]} 30... Nxb4 {[%clk 0:01:01.1]} 31. cxb4
{[%clk 0:02:27.8]} 31... Ke5 {[%clk 0:01:00.8]} 32. Rd1 {[%clk 0:02:27.1]} 32...
Rh8 {[%clk 0:00:57.3]} 33. Ke3 {[%clk 0:02:23.6]} 33... f5 {[%clk 0:00:56.7]}
34. exf5 {[%clk 0:02:22.4]} 34... Bxf5 {[%clk 0:00:57.4]} 35. g3 {[%clk
0:02:21.7]} 35... Rh3 {[%clk 0:00:54.7]} 36. Rd8 {[%clk 0:02:19.8]} 36... Rxg3
{[%clk 0:00:47.6]} 37. Re8+ {[%clk 0:02:10.8]} 37... Kd6 {[%clk 0:00:45.9]} 38.
Ra8 {[%clk 0:02:10.2]} 38... Ke5 {[%clk 0:00:42.6]} 39. Rxa6 {[%clk 0:02:09.9]}
39... g4 {[%clk 0:00:43.2]} 40. Ra8 {[%clk 0:02:05.8]} 40... gxf3 {[%clk
0:00:43.4]} 41. Re8+ {[%clk 0:02:06.4]} 41... Kd6 {[%clk 0:00:41.1]} 42. Bxf3
{[%clk 0:02:06.9]} 42... Bg4 {[%clk 0:00:41.3]} 43. Rf8 {[%clk 0:02:07.1]} 43...
Bxf3 {[%clk 0:00:39.5]} 44. Rxf3 {[%clk 0:02:07.6]} 44... Rg2 {[%clk 0:00:39.8]}
45. Rf6+ {[%clk 0:02:07.6]} 45... Kc7 {[%clk 0:00:38.8]} 46. Kd4 {[%clk
0:02:07.3]} 46... Rxb2 {[%clk 0:00:35.8]} 47. Kc5 {[%clk 0:02:07.6]} 47... c3
{[%clk 0:00:36.5]} 48. Kxb5 {[%clk 0:02:07.7]} 48... c2 {[%clk 0:00:35.3]} 49.
Rc6+ {[%clk 0:02:08.1]} 49... Kb7 {[%clk 0:00:36]} 50. Rc3 {[%clk 0:02:08.1]}
50... Ra2 {[%clk 0:00:35.3]} 51. Rc4 {[%clk 0:02:04.9]} 51... Rb2 {[%clk
0:00:33.1]} 52. Ka4 {[%clk 0:01:57.7]} 52... Ka6 {[%clk 0:00:28.4]} 53. Ka3
{[%clk 0:01:43.2]} 53... Rb1 {[%clk 0:00:24.6]} 54. Rc6+ {[%clk 0:01:38.3]}
54... Kb5 {[%clk 0:00:21.8]} 55. Rc5+ {[%clk 0:01:38.8]} 55... Ka6 {[%clk
0:00:22]} 56. Rxc2 {[%clk 0:01:39.5]} 56... Kb5 {[%clk 0:00:15.6]} 57. Rc5+
{[%clk 0:01:38.5]} 57... Ka6 {[%clk 0:00:16.2]} 58. Re5 {[%clk 0:01:28.9]} 58...
Rh1 {[%clk 0:00:11.3]} 59. Kb3 {[%clk 0:01:28.9]} 59... Rb1+ {[%clk 0:00:09.1]}
60. Kc4 {[%clk 0:01:23.6]} 60... Rc1+ {[%clk 0:00:09.1]} 61. Kd4 {[%clk
0:01:24.1]} 61... Rc2 {[%clk 0:00:05.8]} 62. Rc5 {[%clk 0:01:05.5]} 62... Rh2
{[%clk 0:00:04.6]} 63. Kc4 {[%clk 0:01:01.6]} 63... Rc2+ {[%clk 0:00:03.8]} 64.
Kd5 {[%clk 0:00:55.6]} 64... Rb2 {[%clk 0:00:03.1]} 65. Rc6+ {[%clk 0:00:54.7]}
65... Kb5 {[%clk 0:00:03.3]} 66. Rb6+ {[%clk 0:00:54.8]} 66... Ka4 {[%clk
0:00:03.9]} 67. a6 {[%clk 0:00:54.5]} 1-0